[Event "Early-Titled-Tuesday-Blitz-January-23-2024"]
[Site "Chess.com"]
[Date "2024.01.23"]
[Round "8"]
[White "rionelG"]
[Black "PawnEatingZombie"]
[Result "0-1"]
[WhiteElo "2295"]
[BlackElo "2115"]
[TimeControl "180+1"]
[EndTime "9:28:12 PST"]
[Termination "PawnEatingZombie won on time"]

1. e4 {[%clk 0:03:00.9]} 1... e6 {[%clk 0:02:59.8]} 2. d4 {[%clk 0:03:00.6]}
2... d5 {[%clk 0:03:00.5]} 3. Nc3 {[%clk 0:02:57.9]} 3... Nf6 {[%clk 0:03:00.5]}
4. e5 {[%clk 0:02:57.1]} 4... Nfd7 {[%clk 0:03:00.6]} 5. f4 {[%clk 0:02:55.8]}
5... c5 {[%clk 0:03:00.6]} 6. Nf3 {[%clk 0:02:54.8]} 6... Nc6 {[%clk 0:03:00.9]}
7. Be3 {[%clk 0:02:54.3]} 7... Rb8 {[%clk 0:03:00]} 8. dxc5 {[%clk 0:02:46.9]}
8... Bxc5 {[%clk 0:02:56.2]} 9. Bxc5 {[%clk 0:02:46]} 9... Nxc5 {[%clk
0:02:55.7]} 10. Qd2 {[%clk 0:02:32.2]} 10... a6 {[%clk 0:02:48.7]} 11. O-O-O
{[%clk 0:02:27.7]} 11... b5 {[%clk 0:02:44.5]} 12. f5 {[%clk 0:02:25.7]} 12...
b4 {[%clk 0:02:43.8]} 13. Ne2 {[%clk 0:02:20.7]} 13... Ne4 {[%clk 0:02:01.5]}
14. Qe3 {[%clk 0:01:46]} 14... exf5 {[%clk 0:01:57.7]} 15. Nf4 {[%clk
0:01:29.5]} 15... Be6 {[%clk 0:01:53.6]} 16. Bd3 {[%clk 0:01:25.3]} 16... Qb6
{[%clk 0:01:45.4]} 17. Qxb6 {[%clk 0:01:00.1]} 17... Rxb6 {[%clk 0:01:45]} 18.
Rhe1 {[%clk 0:00:52.7]} 18... O-O {[%clk 0:01:42]} 19. h3 {[%clk 0:00:51.5]}
19... Rc8 {[%clk 0:01:33.1]} 20. Kb1 {[%clk 0:00:41.1]} 20... a5 {[%clk
0:01:31.7]} 21. Rg1 {[%clk 0:00:32.8]} 21... a4 {[%clk 0:01:23.5]} 22. g4 {[%clk
0:00:27.9]} 22... fxg4 {[%clk 0:01:14.5]} 23. hxg4 {[%clk 0:00:28]} 23... a3
{[%clk 0:01:14.6]} 24. Bxe4 {[%clk 0:00:18.7]} 24... dxe4 {[%clk 0:01:12.8]} 25.
Ng5 {[%clk 0:00:18.5]} 25... Nxe5 {[%clk 0:01:04.3]} 26. Nfxe6 {[%clk
0:00:15.7]} 26... fxe6 {[%clk 0:01:04.8]} 27. Nxe4 {[%clk 0:00:15.7]} 27... Nc4
{[%clk 0:00:51.5]} 28. b3 {[%clk 0:00:14.2]} 28... Ne3 {[%clk 0:00:51.6]} 29.
Rd2 {[%clk 0:00:13.8]} 29... Rbc6 {[%clk 0:00:49.5]} 30. Rc1 {[%clk 0:00:11]}
30... Nd5 {[%clk 0:00:49.3]} 31. Rd4 {[%clk 0:00:06.8]} 31... Rf8 {[%clk
0:00:42.6]} 32. c4 {[%clk 0:00:05.8]} 32... bxc3 {[%clk 0:00:40.4]} 33. Rd3
{[%clk 0:00:05.1]} 33... c2+ {[%clk 0:00:27.9]} 34. Ka1 {[%clk 0:00:03.4]} 34...
Rf4 {[%clk 0:00:23.8]} 35. Nd2 {[%clk 0:00:02.6]} 35... Rxg4 {[%clk 0:00:18]}
36. Nc4 {[%clk 0:00:02.7]} 36... Rg2 {[%clk 0:00:16.1]} 37. Ne5 {[%clk
0:00:01.6]} 37... Rc3 {[%clk 0:00:12.9]} 38. Rxc3 {[%clk 0:00:01.1]} 38... Nxc3
{[%clk 0:00:13.1]} 39. Nd3 {[%clk 0:00:01.1]} 39... Rd2 {[%clk 0:00:08.2]} 0-1

[Event "Early-Titled-Tuesday-Blitz-January-23-2024"]
[Site "Chess.com"]
[Date "2024.01.23"]
[Round "8"]
[White "FoxOnTheRun97"]
[Black "Happy1712Drummer"]
[Result "1-0"]
[WhiteElo "2603"]
[BlackElo "2437"]
[TimeControl "180+1"]
[EndTime "9:28:15 PST"]
[Termination "FoxOnTheRun97 won on time"]

1. d4 {[%clk 0:03:00.9]} 1... d5 {[%clk 0:03:00]} 2. Bf4 {[%clk 0:03:00.6]} 2...
e6 {[%clk 0:02:58.7]} 3. e3 {[%clk 0:03:01]} 3... Nf6 {[%clk 0:02:56.4]} 4. Nf3
{[%clk 0:03:00.8]} 4... Bd6 {[%clk 0:02:56.6]} 5. Bd3 {[%clk 0:03:00.6]} 5... b6
{[%clk 0:02:56.4]} 6. O-O {[%clk 0:03:00.3]} 6... Bb7 {[%clk 0:02:56.6]} 7. Ne5
{[%clk 0:02:59.6]} 7... Nbd7 {[%clk 0:02:53.9]} 8. Nd2 {[%clk 0:02:58.9]} 8...
Ne4 {[%clk 0:02:45.4]} 9. f3 {[%clk 0:02:56.2]} 9... Nxd2 {[%clk 0:02:44]} 10.
Qxd2 {[%clk 0:02:56.3]} 10... O-O {[%clk 0:02:42.1]} 11. Nxd7 {[%clk 0:02:42.7]}
11... Qxd7 {[%clk 0:02:42]} 12. Bxd6 {[%clk 0:02:43.2]} 12... Qxd6 {[%clk
0:02:39.9]} 13. c3 {[%clk 0:02:42.4]} 13... c5 {[%clk 0:02:39.4]} 14. Qe2 {[%clk
0:02:42.1]} 14... Rad8 {[%clk 0:02:33.1]} 15. Rad1 {[%clk 0:02:40]} 15... e5
{[%clk 0:02:29.8]} 16. dxc5 {[%clk 0:02:36.2]} 16... Qxc5 {[%clk 0:02:27.3]} 17.
Rfe1 {[%clk 0:02:32.3]} 17... e4 {[%clk 0:02:09.1]} 18. Bc2 {[%clk 0:02:31]}
18... exf3 {[%clk 0:02:06.3]} 19. gxf3 {[%clk 0:02:28.1]} 19... Rfe8 {[%clk
0:02:01.4]} 20. Rd4 {[%clk 0:02:28]} 20... Rd6 {[%clk 0:01:57.3]} 21. Kh1 {[%clk
0:02:14.3]} 21... Rde6 {[%clk 0:01:54.2]} 22. Qf2 {[%clk 0:02:12.9]} 22... Qe7
{[%clk 0:01:49]} 23. Rd3 {[%clk 0:01:44]} 23... g6 {[%clk 0:01:45.1]} 24. Kg1
{[%clk 0:01:40.2]} 24... Re5 {[%clk 0:01:07.3]} 25. f4 {[%clk 0:01:37]} 25...
Re6 {[%clk 0:01:05.4]} 26. Bb3 {[%clk 0:01:34.4]} 26... Qc5 {[%clk 0:01:00.7]}
27. Rd4 {[%clk 0:01:32.4]} 27... a5 {[%clk 0:00:56.4]} 28. Bc2 {[%clk
0:01:28.1]} 28... Qe7 {[%clk 0:00:53.6]} 29. Bb3 {[%clk 0:01:23.8]} 29... Rxe3
{[%clk 0:00:49.9]} 30. Rxe3 {[%clk 0:01:23.8]} 30... Qxe3 {[%clk 0:00:50.5]} 31.
Qxe3 {[%clk 0:01:24.5]} 31... Rxe3 {[%clk 0:00:51.2]} 32. Bxd5 {[%clk
0:01:25.2]} 32... Bxd5 {[%clk 0:00:51.2]} 33. Rxd5 {[%clk 0:01:26.1]} 33... Kg7
{[%clk 0:00:20.7]} 34. Rd6 {[%clk 0:01:11.9]} 34... Re1+ {[%clk 0:00:10.9]} 35.
Kf2 {[%clk 0:01:11.2]} 35... Ra1 {[%clk 0:00:11.2]} 36. Rxb6 {[%clk 0:01:09.6]}
36... Rxa2 {[%clk 0:00:11.1]} 37. Kf3 {[%clk 0:01:09.5]} 37... a4 {[%clk
0:00:11.4]} 38. c4 {[%clk 0:01:09]} 38... a3 {[%clk 0:00:10.8]} 39. bxa3 {[%clk
0:01:05.4]} 39... Rxa3+ {[%clk 0:00:10.6]} 40. Ke4 {[%clk 0:01:03.2]} 40... Ra2
{[%clk 0:00:09.5]} 41. h4 {[%clk 0:01:01.1]} 41... Rh2 {[%clk 0:00:06.6]} 42. c5
{[%clk 0:01:00.4]} 42... Rxh4 {[%clk 0:00:06.8]} 43. c6 {[%clk 0:01:00.7]} 43...
Rh1 {[%clk 0:00:07]} 44. Rb5 {[%clk 0:00:55.8]} 44... Rc1 {[%clk 0:00:06.6]} 45.
Kd5 {[%clk 0:00:56.2]} 45... Rd1+ {[%clk 0:00:07]} 46. Ke5 {[%clk 0:00:55.6]}
46... Rc1 {[%clk 0:00:07.3]} 47. Kd6 {[%clk 0:00:55.7]} 47... h5 {[%clk
0:00:07.2]} 48. c7 {[%clk 0:00:54.4]} 48... h4 {[%clk 0:00:07.2]} 49. Rc5 {[%clk
0:00:54.7]} 49... Rd1+ {[%clk 0:00:04]} 50. Kc6 {[%clk 0:00:55]} 50... h3 {[%clk
0:00:04.4]} 51. Rc2 {[%clk 0:00:45.7]} 51... Rg1 {[%clk 0:00:02.4]} 52. c8=Q
{[%clk 0:00:44.5]} 52... Rg2 {[%clk 0:00:02.2]} 53. Rxg2 {[%clk 0:00:42.2]}
53... hxg2 {[%clk 0:00:02.9]} 54. Qg4 {[%clk 0:00:42.5]} 1-0

[Event "Early-Titled-Tuesday-Blitz-January-23-2024"]
[Site "Chess.com"]
[Date "2024.01.23"]
[Round "8"]
[White "Kopytkin"]
[Black "vova-79"]
[Result "0-1"]
[WhiteElo "2401"]
[BlackElo "2551"]
[TimeControl "180+1"]
[EndTime "9:28:16 PST"]
[Termination "vova-79 won on time"]

1. e4 {[%clk 0:02:53.2]} 1... c6 {[%clk 0:02:59.5]} 2. d4 {[%clk 0:02:52]} 2...
d5 {[%clk 0:02:59.7]} 3. exd5 {[%clk 0:02:52.3]} 3... cxd5 {[%clk 0:02:59.4]} 4.
c4 {[%clk 0:02:53.2]} 4... Nf6 {[%clk 0:02:58.9]} 5. Nc3 {[%clk 0:02:53.8]} 5...
g6 {[%clk 0:02:59.1]} 6. Nf3 {[%clk 0:02:41.1]} 6... Bg7 {[%clk 0:02:56.5]} 7.
h3 {[%clk 0:02:41]} 7... O-O {[%clk 0:02:28.2]} 8. c5 {[%clk 0:02:40.3]} 8...
Ne4 {[%clk 0:02:10.6]} 9. Bd3 {[%clk 0:02:37.1]} 9... Nxc3 {[%clk 0:02:07.4]}
10. bxc3 {[%clk 0:02:38]} 10... b6 {[%clk 0:02:07.9]} 11. cxb6 {[%clk
0:02:28.3]} 11... axb6 {[%clk 0:02:08.8]} 12. O-O {[%clk 0:02:24.4]} 12... Ba6
{[%clk 0:02:06.3]} 13. Bg5 {[%clk 0:02:18.8]} 13... Nc6 {[%clk 0:02:03.6]} 14.
a4 {[%clk 0:02:13.7]} 14... Bxd3 {[%clk 0:01:57.6]} 15. Qxd3 {[%clk 0:02:13.2]}
15... Na5 {[%clk 0:01:57.1]} 16. Rfe1 {[%clk 0:02:09.6]} 16... Re8 {[%clk
0:01:56.4]} 17. Qb5 {[%clk 0:02:01.7]} 17... Nc4 {[%clk 0:01:44.9]} 18. Ne5
{[%clk 0:01:50.6]} 18... Ra5 {[%clk 0:01:06.2]} 19. Qb4 {[%clk 0:01:29.4]} 19...
Nxe5 {[%clk 0:00:50.5]} 20. dxe5 {[%clk 0:01:27.1]} 20... Qc7 {[%clk 0:00:51]}
21. f4 {[%clk 0:00:57.8]} 21... e6 {[%clk 0:00:46.1]} 22. Rab1 {[%clk
0:00:49.4]} 22... Bf8 {[%clk 0:00:43.8]} 23. Qb3 {[%clk 0:00:49.2]} 23... Rea8
{[%clk 0:00:40]} 24. Kh2 {[%clk 0:00:37.8]} 24... Rxa4 {[%clk 0:00:36.6]} 25.
Qxb6 {[%clk 0:00:33.6]} 25... Qxb6 {[%clk 0:00:36.3]} 26. Rxb6 {[%clk 0:00:33]}
26... h6 {[%clk 0:00:36.8]} 27. Bf6 {[%clk 0:00:19.5]} 27... Rxf4 {[%clk
0:00:33.9]} 28. Reb1 {[%clk 0:00:20]} 28... Rc4 {[%clk 0:00:29.1]} 29. R1b3
{[%clk 0:00:18.6]} 29... Rac8 {[%clk 0:00:28.1]} 30. Rb8 {[%clk 0:00:16.2]}
30... g5 {[%clk 0:00:24.6]} 31. Rxc8 {[%clk 0:00:14.7]} 31... Rxc8 {[%clk
0:00:23.9]} 32. g4 {[%clk 0:00:15]} 32... Kh7 {[%clk 0:00:22.4]} 33. Kg3 {[%clk
0:00:15]} 33... Kg6 {[%clk 0:00:22.6]} 34. Kf3 {[%clk 0:00:15.2]} 34... Bg7
{[%clk 0:00:22.1]} 35. Bxg7 {[%clk 0:00:14.5]} 35... Kxg7 {[%clk 0:00:22.5]} 36.
Ke3 {[%clk 0:00:15.1]} 36... Rc4 {[%clk 0:00:22.3]} 37. Kd3 {[%clk 0:00:14]}
37... Re4 {[%clk 0:00:21.7]} 38. Rb1 {[%clk 0:00:11.6]} 38... Rxe5 {[%clk
0:00:21.4]} 39. Rb7 {[%clk 0:00:08.8]} 39... Re1 {[%clk 0:00:20.8]} 40. Kd4
{[%clk 0:00:08.5]} 40... Rh1 {[%clk 0:00:20.2]} 41. Ke5 {[%clk 0:00:07.9]} 41...
Rxh3 {[%clk 0:00:19.9]} 42. Rc7 {[%clk 0:00:07.6]} 42... Rg3 {[%clk 0:00:19]}
43. Kd6 {[%clk 0:00:08.1]} 43... Rxg4 {[%clk 0:00:18.6]} 44. Ke7 {[%clk
0:00:08.7]} 44... Rf4 {[%clk 0:00:18.7]} 45. Ke8 {[%clk 0:00:09.1]} 45... h5
{[%clk 0:00:19.1]} 0-1

[Event "Early-Titled-Tuesday-Blitz-January-23-2024"]
[Site "Chess.com"]
[Date "2024.01.23"]
[Round "8"]
[White "ChessSwole"]
[Black "EvgenyBurmakin"]
[Result "1-0"]
[WhiteElo "2621"]
[BlackElo "2443"]
[TimeControl "180+1"]
[EndTime "9:28:20 PST"]
[Termination "ChessSwole won on time"]

1. e4 {[%clk 0:03:00.9]} 1... c5 {[%clk 0:02:59.5]} 2. Nf3 {[%clk 0:03:01]} 2...
d6 {[%clk 0:02:58.8]} 3. d4 {[%clk 0:03:00]} 3... cxd4 {[%clk 0:02:59.7]} 4.
Nxd4 {[%clk 0:03:00.8]} 4... Nf6 {[%clk 0:03:00.1]} 5. Nc3 {[%clk 0:03:01.4]}
5... a6 {[%clk 0:03:00.6]} 6. Qe2 {[%clk 0:03:01.7]} 6... e5 {[%clk 0:02:59]} 7.
Nf5 {[%clk 0:03:01.8]} 7... Nc6 {[%clk 0:02:43.9]} 8. Bg5 {[%clk 0:02:59.8]}
8... Bxf5 {[%clk 0:02:33.3]} 9. exf5 {[%clk 0:03:00.7]} 9... Nd4 {[%clk
0:02:33.3]} 10. Qd3 {[%clk 0:03:00.5]} 10... d5 {[%clk 0:02:16.2]} 11. f4 {[%clk
0:02:46.5]} 11... Qd6 {[%clk 0:02:01.1]} 12. O-O-O {[%clk 0:02:45.6]} 12... Nc6
{[%clk 0:01:46]} 13. Bxf6 {[%clk 0:02:42.3]} 13... gxf6 {[%clk 0:01:45]} 14.
Qxd5 {[%clk 0:02:33.9]} 14... Qxd5 {[%clk 0:01:18.9]} 15. Nxd5 {[%clk
0:02:34.8]} 15... O-O-O {[%clk 0:01:17.9]} 16. Nxf6 {[%clk 0:01:44.4]} 16... Bh6
{[%clk 0:01:10.4]} 17. Bc4 {[%clk 0:01:38.4]} 17... Bxf4+ {[%clk 0:01:07.5]} 18.
Kb1 {[%clk 0:01:38.7]} 18... Kb8 {[%clk 0:00:50]} 19. c3 {[%clk 0:01:27.4]}
19... Ne7 {[%clk 0:00:38.5]} 20. g4 {[%clk 0:01:23.4]} 20... Kc7 {[%clk
0:00:27.2]} 21. h3 {[%clk 0:01:06.2]} 21... Nc6 {[%clk 0:00:10.2]} 22. Bxf7
{[%clk 0:01:01.2]} 22... Rhf8 {[%clk 0:00:08.5]} 23. Nd5+ {[%clk 0:01:00.6]}
23... Kb8 {[%clk 0:00:07.7]} 24. Be6 {[%clk 0:01:00.3]} 24... Bg3 {[%clk
0:00:06]} 25. Nb6 {[%clk 0:00:55.3]} 25... Kc7 {[%clk 0:00:04.4]} 26. Nd5+
{[%clk 0:00:51.1]} 26... Kb8 {[%clk 0:00:04.4]} 27. a4 {[%clk 0:00:49.3]} 27...
a5 {[%clk 0:00:03]} 28. Kc2 {[%clk 0:00:42.7]} 28... e4 {[%clk 0:00:03.3]} 29.
Rhg1 {[%clk 0:00:40.5]} 29... Bf2 {[%clk 0:00:03.1]} 30. Rg2 {[%clk 0:00:21.9]}
30... e3 {[%clk 0:00:03.7]} 31. Kd3 {[%clk 0:00:21.3]} 31... Ne5+ {[%clk
0:00:03.8]} 32. Ke2 {[%clk 0:00:21.6]} 32... Nc4 {[%clk 0:00:03.6]} 33. b3
{[%clk 0:00:19]} 33... Nd6 {[%clk 0:00:03.5]} 34. Nb6 {[%clk 0:00:15.2]} 34...
Ne4 {[%clk 0:00:03.2]} 35. Nd7+ {[%clk 0:00:15.6]} 35... Kc7 {[%clk 0:00:02.4]}
36. Nxf8 {[%clk 0:00:15.2]} 36... Nxc3+ {[%clk 0:00:02.7]} 37. Kf3 {[%clk
0:00:15.2]} 37... Rxd1 {[%clk 0:00:03.1]} 38. Bc4 {[%clk 0:00:14.5]} 38... Nb1
{[%clk 0:00:02.3]} 39. Ne6+ {[%clk 0:00:14.4]} 39... Kd6 {[%clk 0:00:01.2]} 40.
f6 {[%clk 0:00:14.7]} 40... Nd2+ {[%clk 0:00:01.4]} 41. Ke2 {[%clk 0:00:14.7]}
41... Re1+ {[%clk 0:00:02]} 42. Kd3 {[%clk 0:00:14.6]} 42... Nf3 {[%clk
0:00:01.5]} 43. Ke4 {[%clk 0:00:09.7]} 1-0

[Event "Early-Titled-Tuesday-Blitz-January-23-2024"]
[Site "Chess.com"]
[Date "2024.01.23"]
[Round "8"]
[White "Korchmar_Vasiliy"]
[Black "Binary010"]
[Result "1/2-1/2"]
[WhiteElo "2729"]
[BlackElo "2886"]
[TimeControl "180+1"]
[EndTime "9:28:21 PST"]
[Termination "Game drawn by repetition"]

1. e4 {[%clk 0:03:00.9]} 1... c5 {[%clk 0:03:00.1]} 2. d4 {[%clk 0:03:00.2]}
2... cxd4 {[%clk 0:03:00.1]} 3. Qxd4 {[%clk 0:03:01.1]} 3... Nc6 {[%clk
0:02:59.4]} 4. Qd3 {[%clk 0:03:01.8]} 4... g6 {[%clk 0:02:55]} 5. Nc3 {[%clk
0:03:02]} 5... Bg7 {[%clk 0:02:55]} 6. Nf3 {[%clk 0:03:02.7]} 6... d6 {[%clk
0:02:53.7]} 7. Be2 {[%clk 0:03:03.2]} 7... Nf6 {[%clk 0:02:51.1]} 8. O-O {[%clk
0:03:03.8]} 8... O-O {[%clk 0:02:51.2]} 9. Nd5 {[%clk 0:03:04.5]} 9... e6 {[%clk
0:02:19.1]} 10. Nxf6+ {[%clk 0:03:03.3]} 10... Bxf6 {[%clk 0:02:20]} 11. c3
{[%clk 0:03:02.7]} 11... d5 {[%clk 0:02:17.4]} 12. Bh6 {[%clk 0:02:58.5]} 12...
Re8 {[%clk 0:02:14]} 13. Rad1 {[%clk 0:02:58.5]} 13... Qc7 {[%clk 0:02:08]} 14.
Rfe1 {[%clk 0:02:52.2]} 14... dxe4 {[%clk 0:01:47.8]} 15. Qxe4 {[%clk
0:02:53.1]} 15... e5 {[%clk 0:01:48.3]} 16. Ng5 {[%clk 0:02:46.4]} 16... Bf5
{[%clk 0:01:43.2]} 17. Qh4 {[%clk 0:02:44.5]} 17... e4 {[%clk 0:01:32.9]} 18.
Bc4 {[%clk 0:02:34.6]} 18... Ne5 {[%clk 0:01:31.1]} 19. Bd5 {[%clk 0:02:29.8]}
19... Ng4 {[%clk 0:00:53.2]} 20. Bb3 {[%clk 0:00:58.4]} 20... e3 {[%clk
0:00:25.8]} 21. fxe3 {[%clk 0:00:55.2]} 21... Nxh6 {[%clk 0:00:19.1]} 22. Qxh6
{[%clk 0:00:54.9]} 22... Bxg5 {[%clk 0:00:19.7]} 23. Qxg5 {[%clk 0:00:55.8]}
23... Rad8 {[%clk 0:00:19.6]} 24. Qf6 {[%clk 0:00:49.3]} 24... Rxd1 {[%clk
0:00:11.3]} 25. Rxd1 {[%clk 0:00:50.2]} 25... Qe7 {[%clk 0:00:07.5]} 26. Qxe7
{[%clk 0:00:47]} 26... Rxe7 {[%clk 0:00:08.4]} 27. Kf2 {[%clk 0:00:47.6]} 27...
Be4 {[%clk 0:00:08.8]} 28. g4 {[%clk 0:00:38.1]} 28... Kg7 {[%clk 0:00:08.7]}
29. g5 {[%clk 0:00:37.6]} 29... h6 {[%clk 0:00:09]} 30. h4 {[%clk 0:00:38.2]}
30... hxg5 {[%clk 0:00:09.2]} 31. hxg5 {[%clk 0:00:39.1]} 31... f6 {[%clk
0:00:09.8]} 32. gxf6+ {[%clk 0:00:36.9]} 32... Kxf6 {[%clk 0:00:10.7]} 33. Kg3
{[%clk 0:00:36.8]} 33... Ke5 {[%clk 0:00:09.8]} 34. Rd8 {[%clk 0:00:30.3]} 34...
b6 {[%clk 0:00:06.6]} 35. Kg4 {[%clk 0:00:30.6]} 35... Kf6 {[%clk 0:00:05]} 36.
Rd6+ {[%clk 0:00:25.9]} 36... Ke5 {[%clk 0:00:04.9]} 37. Rd8 {[%clk 0:00:22.4]}
37... Kf6 {[%clk 0:00:05.3]} 38. Rf8+ {[%clk 0:00:13.6]} 38... Ke5 {[%clk
0:00:05.7]} 39. Kg5 {[%clk 0:00:12.9]} 39... Bf5 {[%clk 0:00:06.1]} 40. Rd8
{[%clk 0:00:08.7]} 40... Ke4 {[%clk 0:00:05.4]} 41. Bc2+ {[%clk 0:00:07.5]}
41... Ke5 {[%clk 0:00:03.9]} 42. Bb3 {[%clk 0:00:05.8]} 42... Ke4 {[%clk
0:00:03.8]} 43. Bc2+ {[%clk 0:00:03]} 43... Ke5 {[%clk 0:00:04.1]} 44. Bb3
{[%clk 0:00:03.7]} 1/2-1/2

[Event "Early-Titled-Tuesday-Blitz-January-23-2024"]
[Site "Chess.com"]
[Date "2024.01.23"]
[Round "8"]
[White "colegiodemadrid"]
[Black "BardArtem"]
[Result "0-1"]
[WhiteElo "2503"]
[BlackElo "2824"]
[TimeControl "180+1"]
[EndTime "9:28:21 PST"]
[Termination "BardArtem won by resignation"]

1. Nf3 {[%clk 0:02:52.5]} 1... d5 {[%clk 0:02:58]} 2. c4 {[%clk 0:02:51.7]} 2...
e6 {[%clk 0:02:57.6]} 3. g3 {[%clk 0:02:51.8]} 3... Nf6 {[%clk 0:02:57.8]} 4.
Bg2 {[%clk 0:02:52.3]} 4... Nbd7 {[%clk 0:02:57.5]} 5. O-O {[%clk 0:02:52.9]}
5... c6 {[%clk 0:02:57.8]} 6. d3 {[%clk 0:02:52.7]} 6... e5 {[%clk 0:02:57.3]}
7. Nc3 {[%clk 0:02:47.9]} 7... d4 {[%clk 0:02:54.8]} 8. Nb1 {[%clk 0:02:45.3]}
8... Bd6 {[%clk 0:02:51.3]} 9. h3 {[%clk 0:02:42.5]} 9... O-O {[%clk 0:02:50.3]}
10. e4 {[%clk 0:02:43.1]} 10... dxe3 {[%clk 0:02:46]} 11. Bxe3 {[%clk
0:02:43.5]} 11... Re8 {[%clk 0:02:44.8]} 12. d4 {[%clk 0:02:42.7]} 12... exd4
{[%clk 0:02:29.6]} 13. Nxd4 {[%clk 0:02:43.6]} 13... Ne5 {[%clk 0:02:29.5]} 14.
Qc2 {[%clk 0:02:40.7]} 14... Qe7 {[%clk 0:02:15.6]} 15. Nd2 {[%clk 0:02:34.3]}
15... Rd8 {[%clk 0:02:10.2]} 16. N2b3 {[%clk 0:02:32.7]} 16... a5 {[%clk
0:02:04.3]} 17. c5 {[%clk 0:02:28.2]} 17... Bc7 {[%clk 0:02:02.5]} 18. a4 {[%clk
0:02:28.5]} 18... Be6 {[%clk 0:01:53.1]} 19. Rfe1 {[%clk 0:02:09.9]} 19... Bd5
{[%clk 0:01:40.8]} 20. Bf4 {[%clk 0:01:58]} 20... Bxg2 {[%clk 0:01:29]} 21. Kxg2
{[%clk 0:01:56.5]} 21... Rd5 {[%clk 0:01:24.7]} 22. Nf5 {[%clk 0:01:50.9]} 22...
Qd7 {[%clk 0:01:18.6]} 23. Ne3 {[%clk 0:01:48.3]} 23... Rd3 {[%clk 0:01:17.6]}
24. Rad1 {[%clk 0:01:40.8]} 24... Rd8 {[%clk 0:01:15.6]} 25. Nc1 {[%clk
0:01:14.9]} 25... Rxd1 {[%clk 0:01:00.6]} 26. Rxd1 {[%clk 0:01:15.8]} 26... Qe8
{[%clk 0:01:01.1]} 27. Nb3 {[%clk 0:01:02.6]} 27... h6 {[%clk 0:00:52.8]} 28. h4
{[%clk 0:00:59.1]} 28... Rxd1 {[%clk 0:00:42.8]} 29. Qxd1 {[%clk 0:00:53.3]}
29... Qd7 {[%clk 0:00:38.6]} 30. Qd4 {[%clk 0:00:34.2]} 30... Qxd4 {[%clk
0:00:33.7]} 31. Nxd4 {[%clk 0:00:35.1]} 31... Nh5 {[%clk 0:00:34.4]} 32. Bxe5
{[%clk 0:00:14.5]} 32... Bxe5 {[%clk 0:00:35.3]} 33. Nec2 {[%clk 0:00:13.1]}
33... Nf6 {[%clk 0:00:33.6]} 34. b3 {[%clk 0:00:12.3]} 34... Ne4 {[%clk
0:00:31.3]} 35. Nf3 {[%clk 0:00:10.2]} 35... Bf6 {[%clk 0:00:28.8]} 36. b4
{[%clk 0:00:08.6]} 36... axb4 {[%clk 0:00:29.7]} 37. Nxb4 {[%clk 0:00:08.9]}
37... Nxc5 {[%clk 0:00:30.3]} 38. a5 {[%clk 0:00:09.5]} 38... Bc3 {[%clk
0:00:29.7]} 39. a6 {[%clk 0:00:06]} 39... Nxa6 {[%clk 0:00:28]} 40. Nxa6 {[%clk
0:00:05.7]} 40... bxa6 {[%clk 0:00:28.9]} 41. Kf1 {[%clk 0:00:05.9]} 41... c5
{[%clk 0:00:20.8]} 42. Ke2 {[%clk 0:00:06.2]} 42... c4 {[%clk 0:00:21.6]} 43.
Kd1 {[%clk 0:00:06.5]} 43... a5 {[%clk 0:00:22.2]} 44. Kc2 {[%clk 0:00:07]}
44... Bf6 {[%clk 0:00:22.9]} 45. Nd2 {[%clk 0:00:07]} 45... c3 {[%clk
0:00:23.6]} 46. Nc4 {[%clk 0:00:05.4]} 46... a4 {[%clk 0:00:24]} 47. Nb6 {[%clk
0:00:05.4]} 47... a3 {[%clk 0:00:24.7]} 48. Kb3 {[%clk 0:00:05]} 48... c2 {[%clk
0:00:25.3]} 49. Kxc2 {[%clk 0:00:04.5]} 49... a2 {[%clk 0:00:25.9]} 0-1

[Event "Early-Titled-Tuesday-Blitz-January-23-2024"]
[Site "Chess.com"]
[Date "2024.01.23"]
[Round "8"]
[White "PattyCastillo"]
[Black "Ezov"]
[Result "0-1"]
[WhiteElo "1954"]
[BlackElo "2213"]
[TimeControl "180+1"]
[EndTime "9:28:21 PST"]
[Termination "Ezov won on time"]

1. d4 {[%clk 0:02:59.4]} 1... d5 {[%clk 0:02:58]} 2. Nf3 {[%clk 0:02:59.2]} 2...
c5 {[%clk 0:02:57.3]} 3. e3 {[%clk 0:02:58.8]} 3... Nc6 {[%clk 0:02:58.2]} 4. b3
{[%clk 0:02:51.6]} 4... Qb6 {[%clk 0:02:57]} 5. dxc5 {[%clk 0:02:46.6]} 5...
Qxc5 {[%clk 0:02:55.4]} 6. Bb2 {[%clk 0:02:46.3]} 6... f6 {[%clk 0:02:55]} 7.
Bd3 {[%clk 0:02:44.7]} 7... e5 {[%clk 0:02:52.9]} 8. e4 {[%clk 0:02:32.9]} 8...
d4 {[%clk 0:02:48.5]} 9. O-O {[%clk 0:02:31.7]} 9... Bg4 {[%clk 0:02:45.7]} 10.
Ba3 {[%clk 0:02:26.3]} 10... Qb6 {[%clk 0:02:34]} 11. Bxf8 {[%clk 0:02:25.2]}
11... Kxf8 {[%clk 0:02:34.9]} 12. Nbd2 {[%clk 0:02:24]} 12... Nge7 {[%clk
0:02:28.7]} 13. h3 {[%clk 0:02:23.6]} 13... Bh5 {[%clk 0:02:27.1]} 14. Nc4
{[%clk 0:02:23]} 14... Qc5 {[%clk 0:02:23.2]} 15. g4 {[%clk 0:02:19.2]} 15...
Bg6 {[%clk 0:02:20.2]} 16. a3 {[%clk 0:02:13.8]} 16... Nd8 {[%clk 0:02:06.9]}
17. b4 {[%clk 0:02:12.5]} 17... Qc7 {[%clk 0:02:04.8]} 18. Qb1 {[%clk
0:01:58.9]} 18... h5 {[%clk 0:01:56.6]} 19. Nfd2 {[%clk 0:01:35.1]} 19... hxg4
{[%clk 0:01:52.2]} 20. hxg4 {[%clk 0:01:36]} 20... Ne6 {[%clk 0:01:39.6]} 21.
Nb3 {[%clk 0:01:16.1]} 21... Nf4 {[%clk 0:01:34.2]} 22. Rd1 {[%clk 0:01:13.3]}
22... Rh4 {[%clk 0:01:20.6]} 23. f3 {[%clk 0:01:10.1]} 23... Kf7 {[%clk
0:01:16.4]} 24. Nc5 {[%clk 0:01:09.3]} 24... Rah8 {[%clk 0:01:12]} 25. Bf1
{[%clk 0:01:03.5]} 25... Rh2 {[%clk 0:01:03.9]} 26. Rd2 {[%clk 0:00:51.2]} 26...
Rh1+ {[%clk 0:01:01.3]} 27. Kf2 {[%clk 0:00:50.8]} 27... b5 {[%clk 0:00:57]} 28.
Na5 {[%clk 0:00:39.6]} 28... Qb6 {[%clk 0:00:43.1]} 29. Qb3+ {[%clk 0:00:37.9]}
29... Ke8 {[%clk 0:00:35.9]} 30. Nab7 {[%clk 0:00:33]} 30... Bf7 {[%clk
0:00:29.8]} 31. Qb2 {[%clk 0:00:29.8]} 31... R8h2+ {[%clk 0:00:27.8]} 32. Ke1
{[%clk 0:00:29.3]} 32... Ng2+ {[%clk 0:00:24.3]} 33. Rxg2 {[%clk 0:00:26.8]}
33... Rxg2 {[%clk 0:00:23.3]} 34. Rd1 {[%clk 0:00:25.8]} 34... Rgg1 {[%clk
0:00:22.1]} 35. Kd2 {[%clk 0:00:25.8]} 35... Rxf1 {[%clk 0:00:19.7]} 36. Rxf1
{[%clk 0:00:26]} 36... Rxf1 {[%clk 0:00:19.7]} 37. Ke2 {[%clk 0:00:25.2]} 37...
Rh1 {[%clk 0:00:18.7]} 38. Kf2 {[%clk 0:00:16]} 38... Ng6 {[%clk 0:00:18]} 39.
c3 {[%clk 0:00:13.6]} 39... Nf4 {[%clk 0:00:16.7]} 0-1